[Event "FIDE WYCC Girls U14 2023"]
[Site "Montesilvano"]
[Date "2023.11.17"]
[Round "5.34"]
[White "Sodgerelt Naranbold"]
[Black "Diasamidze, Lulu"]
[Result "1/2-1/2"]
[ECO "B40"]
[WhiteElo "1419"]
[BlackElo "1676"]
[Annotator "NA"]
[PlyCount "85"]
[EventDate "2023.11.13"]
[EventType "swiss"]
[EventCountry "ITA"]
[SourceTitle "playchess.com"]
[Source "ChessBase"]
[SourceQuality "1"]
[TimeControl "40/5400+30:1800+30"]

1. e4 {[%emt 0:01:56]} c5 {[%emt 0:00:06]} 2. Nf3 {[%emt 0:01:29]} e6 {[%emt 0:00:07]} 3. d4 {[%emt 0:01:30]} cxd4 {[%emt 0:00:24]} 4. Nxd4 {[%emt 0:01:32]} Nf6 {[%emt 0:00:08]} 5. Nc3 {[%emt 0:01:27]} Nc6 {[%emt 0:00:21]} 6. Ndb5 {[%emt 0:00:53]} Bc5 {[%emt 0:00:23]} 7. Nd6+ {[%emt 0:02:09]} Ke7 {[%emt 0:00:09]} 8. Bf4 {[%emt 0:01:29]} e5 {[%emt 0:00:23]} 9. Nf5+ {[%emt 0:01:31]} Kf8 {[%emt 0:00:11]} 10. Bg5 {[%emt 0:01:31]} d6 {[%emt 0:00:57]} 11. Bd3 {[%emt 0:01:29]} h6 {[%emt 0:09:10]} 12. Bh4 {[%emt 0:07:18]} g6 {[%emt 0:07:37]} 13. Ne3 {[%emt 0:03:25]} Be6 {[%emt 0:05:21]} 14. Ncd5 {[%emt 0:05:00]} g5 {[%emt 0:02:17]} 15. Bg3 {[%emt 0:01:01]} Bxe3 {[%emt 0:02:05]} 16. Nxe3 {[%emt 0:00:31]} d5 {[%emt 0:00:32]} 17. exd5 {[%emt 0:02:30]} Nxd5 {[%emt 0:02:51]} 18. Nxd5 {[%emt 0:02:10]} Qxd5 {[%emt 0:01:21]} 19. O-O {[%emt 0:00:11]} Kg7 {[%emt 0:01:31]} 20. Qe2 {[%emt 0:01:55]} Rhe8 {[%emt 0:01:40]} 21. Be4 {[%emt 0:04:55]} Qc4 {[%emt 0:03:38]} 22. Qxc4 {[%emt 0:03:03]} Bxc4 {[%emt 0:01:41]} 23. Bxc6 {[%emt 0:00:36]} bxc6 {[%emt 0:00:31]} 24. Rfd1 {[%emt 0:00:12]} f6 {[%emt 0:13:36]} 25. Rd7+ {[%emt 0:01:18]} Kg6 {[%emt 0:00:10]} 26. Rad1 {[%emt 0:00:53]} a5 {[%emt 0:01:52]} 27. b3 {[%emt 0:00:37]} Be6 {[%emt 0:00:23]} 28. R7d6 {[%emt 0:01:16]} Rac8 {[%emt 0:01:33]} 29. f3 {[%emt 0:00:34]} c5 {[%emt 0:07:02]} 30. Ra6 {[%emt 0:00:36]} Ra8 {[%emt 0:02:11]} 31. Rdd6 {[%emt 0:00:48]} Rxa6 {[%emt 0:00:47]} 32. Rxa6 {[%emt 0:00:04]} c4 {[%emt 0:01:08]} 33. Be1 {[%emt 0:04:02]} Bf5 {[%emt 0:03:05]} 34. Rxa5 {[%emt 0:02:23]} Rd8 {[%emt 0:05:14]} 35. bxc4 {[%emt 0:06:13]} Bxc2 {[%emt 0:03:30]} 36. Kf2 {[%emt 0:02:32]} Bf5 {[%emt 0:02:52]} 37. c5 {[%emt 0:00:54]} Rd1 {[%emt 0:00:55]} 38. Ra3 {[%emt 0:03:42]} Rb1 {[%emt 0:01:52]} 39. Rb3 {[%emt 0:01:44]} Rc1 {[%emt 0:02:30]} 40. Rc3 {[%emt 0:00:00]} Ra1 {[%emt 0:00:00]} 41. a3 {[%emt 0:01:33]} Ra2+ {[%emt 0:00:39]} 42. Kf1 {[%emt 0:07:29]} e4 {[%emt 0:05:29]} 43. h3 {[%emt 0:08:30]} 1/2-1/2

[Event "FIDE WYCC Girls U14 2023"]
[Site "Montesilvano"]
[Date "2023.11.17"]
[Round "5.35"]
[White "Viti, Greta"]
[Black "Nguyen, Thuy Linh"]
[Result "0-1"]
[ECO "B53"]
[WhiteElo "1644"]
[BlackElo "1398"]
[Annotator "NA"]
[PlyCount "70"]
[EventDate "2023.11.13"]
[EventType "swiss"]
[EventCountry "ITA"]
[SourceTitle "playchess.com"]
[Source "ChessBase"]
[SourceQuality "1"]
[TimeControl "40/5400+30:1800+30"]

1. e4 {[%emt 0:00:02]} c5 {[%emt 0:00:10]} 2. Nf3 {[%emt 0:00:05]} d6 {[%emt 0:00:07]} 3. d4 {[%emt 0:00:03]} cxd4 {[%emt 0:00:09]} 4. Qxd4 {[%emt 0:00:04]} e5 {[%emt 0:00:42]} 5. Qd3 {[%emt 0:01:34]} Be7 {[%emt 0:00:29]} 6. Be2 {[%emt 0:00:34]} Nf6 {[%emt 0:00:22]} 7. Bg5 {[%emt 0:01:36]} Nbd7 {[%emt 0:00:40]} 8. Bxf6 {[%emt 0:10:45]} Nxf6 {[%emt 0:00:46]} 9. Nc3 {[%emt 0:02:09]} O-O {[%emt 0:00:41]} 10. O-O-O {[%emt 0:00:33]} a6 {[%emt 0:00:29]} 11. Nd2 {[%emt 0:02:39]} b5 {[%emt 0:01:14]} 12. f3 {[%emt 0:13:02]} Be6 {[%emt 0:02:24]} 13. Nb3 {[%emt 0:06:16]} Nh5 {[%emt 0:05:40]} 14. Kb1 {[%emt 0:06:01]} Nf4 {[%emt 0:01:09]} 15. Qd2 {[%emt 0:05:27]} b4 {[%emt 0:03:14]} 16. Nd5 {[%emt 0:03:16]} Bxd5 {[%emt 0:00:37]} 17. exd5 {[%emt 0:00:04]} a5 {[%emt 0:01:13]} 18. Bb5 {[%emt 0:04:04]} a4 {[%emt 0:06:58]} 19. Nc1 {[%emt 0:00:32]} Qa5 {[%emt 0:00:20]} 20. Bc6 {[%emt 0:01:11]} Rab8 {[%emt 0:03:01]} 21. g3 {[%emt 0:02:50]} Ng6 {[%emt 0:01:16]} 22. Nd3 {[%emt 0:02:19]} a3 {[%emt 0:01:33]} 23. b3 {[%emt 0:00:39]} f5 {[%emt 0:00:32]} 24. h4 {[%emt 0:03:20]} Bf6 {[%emt 0:02:03]} 25. Nf2 {[%emt 0:00:46]} Qc7 {[%emt 0:01:29]} 26. Qd3 {[%emt 0:04:01]} Ne7 {[%emt 0:01:38]} 27. Bb5 {[%emt 0:00:57]} Rxb5 {[%emt 0:00:54]} 28. Qxb5 {[%emt 0:02:49]} Qc3 {[%emt 0:00:16]} 29. Kc1 {[%emt 0:04:37]} Rc8 {[%emt 0:01:54]} 30. Qd3 {[%emt 0:05:13]} Qb2+ {[%emt 0:00:39]} 31. Kd2 {[%emt 0:00:04]} Rc3 {[%emt 0:00:28]} 32. Qb5 {[%emt 0:01:01]} Rxc2+ {[%emt 0:02:19]} 33. Ke1 {[%emt 0:00:14]} h6 {[%emt 0:01:47]} 34. Nd3 {[%emt 0:07:36]} Qd4 {[%emt 0:01:47]} 35. Qe8+ {[%emt 0:06:09]} Kh7 {[%emt 0:00:16]} 0-1

[Event "FIDE WYCC Girls U14 2023"]
[Site "Montesilvano"]
[Date "2023.11.18"]
[Round "6.1"]
[White "Mou, Iris"]
[Black "Kaliakhmet, Elnaz"]
[Result "*"]
[WhiteElo "2086"]
[BlackElo "1933"]
[Annotator "NA"]
[PlyCount "49"]
[EventDate "2023.11.13"]
[EventType "swiss"]
[EventCountry "ITA"]
[SourceTitle "playchess.com"]
[Source "ChessBase"]
[SourceQuality "1"]
[TimeControl "40/5400+30:1800+30"]

1. e4 {[%emt 0:00:02]} c5 {[%emt 0:00:15]} 2. Nf3 Nc6 {[%emt 0:00:33]} 3. Bb5 {[%emt 0:00:21]} Nf6 {[%emt 0:00:03]} 4. Nc3 {[%emt 0:01:08]} Qc7 {[%emt 0:00:16]} 5. O-O {[%emt 0:01:02]} Nd4 {[%emt 0:00:12]} 6. h3 {[%emt 0:07:16]} a6 {[%emt 0:09:54]} 7. Bd3 {[%emt 0:03:32]} e5 {[%emt 0:00:40]} 8. Nxd4 {[%emt 0:07:50]} cxd4 {[%emt 0:01:59]} 9. Ne2 {[%emt 0:01:08]} d5 {[%emt 0:07:06]} 10. Ng3 {[%emt 0:07:26]} dxe4 {[%emt 0:01:10]} 11. Nxe4 {[%emt 0:01:09]} Nxe4 {[%emt 0:05:50]} 12. Bxe4 {[%emt 0:00:10]} Bd6 {[%emt 0:01:36]} 13. c3 {[%emt 0:08:40]} O-O {[%emt 0:07:18]} 14. Qb3 {[%emt 0:13:44]} h6 {[%emt 0:08:38]} 15. cxd4 {[%emt 0:12:07]} exd4 {[%emt 0:00:42]} 16. d3 {[%emt 0:00:33]} Rb8 {[%emt 0:08:14]} 17. Bd2 {[%emt 0:04:23]} Be6 {[%emt 0:04:12]} 18. Qa4 {[%emt 0:04:02]} Qb6 {[%emt 0:11:41]} 19. b4 {[%emt 0:09:13]} Rbc8 {[%emt 0:03:56]} 20. Rab1 {[%emt 0:04:37]} Qb5 {[%emt 0:13:28]} 21. Qxb5 {[%emt 0:04:49]} axb5 {[%emt 0:00:03]} 22. Rb2 {[%emt 0:01:48]} Ra8 {[%emt 0:00:58]} 23. Bxb7 Ra3 {[%emt 0:05:47]} 24. Bf3 {[%emt 0:07:23]} Rb8 {[%emt 0:01:47]} 25. Be2 {[%emt 0:00:12]} *

[Event "FIDE WYCC Girls U14 2023"]
[Site "Montesilvano"]
[Date "2023.11.18"]
[Round "6.2"]
[White "Negre, Emilie"]
[Black "Khamdamova, Afruza"]
[Result "0-1"]
[ECO "D35"]
[WhiteElo "1871"]
[BlackElo "2199"]
[Annotator "ChessBase"]
[PlyCount "66"]
[EventDate "2023.11.13"]
[EventType "swiss"]
[EventCountry "ITA"]
[SourceTitle "playchess.com"]
[Source "ChessBase"]
[SourceQuality "1"]
[TimeControl "40/5400+30:1800+30"]

1. c4 {[%emt 0:00:01]} e6 {[%emt 0:00:31]} 2. d4 {[%emt 0:00:14]} d5 {[%emt 0:00:04]} 3. Nc3 {[%emt 0:00:06]} Nf6 {[%emt 0:00:20]} 4. cxd5 {[%emt 0:00:05]} exd5 {[%emt 0:00:03]} 5. Bg5 {[%emt 0:00:09]} Be7 {[%emt 0:00:32]} 6. e3 {[%emt 0:00:10]} O-O {[%emt 0:00:30]} 7. Bd3 {[%emt 0:00:04]} c6 {[%emt 0:00:32]} 8. Nge2 {[%emt 0:00:07]} Re8 {[%emt 0:00:54]} 9. O-O {[%emt 0:00:59]} a5 {[%emt 0:02:00]} 10. Qc2 {[%emt 0:05:07]} h6 {[%emt 0:00:46]} 11. Bh4 {[%emt 0:00:11]} Na6 {[%emt 0:00:26]} 12. a3 {[%emt 0:02:31]} Nc7 {[%emt 0:00:42]} 13. f3 {[%emt 0:04:51]} b5 {[%emt 0:00:45]} 14. Kh1 {[%emt 0:05:38]} Ba6 {[%emt 0:00:22]} 15. Bf2 {[%emt 0:16:51]} Ne6 {[%emt 0:16:29]} 16. Rad1 {[%emt 0:15:51]} b4 {[%emt 0:07:57]} 17. Bxa6 {[%emt 0:02:04]} Rxa6 {[%emt 0:00:09]} 18. axb4 {[%emt 0:01:04]} axb4 {[%emt 0:00:27]} 19. Na4 {[%emt 0:00:49]} Qa8 {[%emt 0:08:08]} 20. Nc5 {[%emt 0:10:56]} Nxc5 {[%emt 0:14:37]} 21. dxc5 {[%emt 0:00:33]} Qa7 {[%emt 0:07:05]} 22. Rc1 {[%emt 0:04:04]} Ra5 {[%emt 0:02:04]} 23. Nd4 {[%emt 0:04:53]} Rxc5 {[%emt 0:04:37]} 24. Nxc6 {[%emt 0:01:15]} Rxc2 {[%emt 0:00:05]} 25. Nxa7 {[%emt 0:00:12]} Rxb2 {[%emt 0:00:04]} 26. Nc6 {[%emt 0:02:15]} Bf8 {[%emt 0:05:49]} 27. Rb1 {[%emt 0:09:40]} Rxb1 {[%emt 0:02:27]} 28. Rxb1 {[%emt 0:00:06]} Nd7 {[%emt 0:00:18]} 29. Nxb4 {[%emt 0:02:40]} Rb8 {[%emt 0:00:04]} 30. Be1 {[%emt 0:00:07]} Ne5 {[%emt 0:00:11]} 31. Rb2 {[%emt 0:02:14]} Nc4 {[%emt 0:00:28]} 32. Rb3 {[%emt 0:00:11]} Bc5 {[%emt 0:02:08]} 33. e4 {[%emt 0:06:42]} d4 {[%emt 0:00:23]} 0-1

[Event "FIDE WYCC Girls U14 2023"]
[Site "Montesilvano"]
[Date "2023.11.18"]
[Round "6.3"]
[White "Mgeladze, Kesaria"]
[Black "Khulan, Bayarsaikhan"]
[Result "*"]
[WhiteElo "2065"]
[BlackElo "1615"]
[Annotator "NA"]
[PlyCount "67"]
[EventDate "2023.11.13"]
[EventType "swiss"]
[EventCountry "ITA"]
[SourceTitle "playchess.com"]
[Source "ChessBase"]
[SourceQuality "1"]
[TimeControl "40/5400+30:1800+30"]

1. e4 {[%emt 0:00:01]} d6 {[%emt 0:00:03]} 2. d4 {[%emt 0:00:32]} Nf6 {[%emt 0:00:04]} 3. Nc3 {[%emt 0:00:16]} e5 {[%emt 0:00:03]} 4. Nge2 {[%emt 0:00:55]} Be7 {[%emt 0:00:13]} 5. h3 {[%emt 0:00:32]} c6 {[%emt 0:00:51]} 6. a4 {[%emt 0:03:10]} a5 {[%emt 0:01:31]} 7. g4 {[%emt 0:00:21]} b6 {[%emt 0:02:14]} 8. Bg2 {[%emt 0:00:26]} Ba6 {[%emt 0:02:30]} 9. O-O {[%emt 0:05:23]} Nfd7 {[%emt 0:06:11]} 10. Be3 {[%emt 0:10:56]} h5 {[%emt 0:10:26]} 11. gxh5 {[%emt 0:07:22]} Rxh5 {[%emt 0:02:55]} 12. Ng3 {[%emt 0:06:14]} Rh7 {[%emt 0:01:21]} 13. Re1 {[%emt 0:00:18]} g6 {[%emt 0:00:32]} 14. f4 {[%emt 0:07:23]} Bh4 {[%emt 0:04:51]} 15. Qf3 {[%emt 0:01:20]} Qf6 {[%emt 0:04:08]} 16. Red1 {[%emt 0:14:40]} exf4 {[%emt 0:17:39]} 17. Qxf4 {[%emt 0:01:22]} Bb7 {[%emt 0:03:22]} 18. d5 {[%emt 0:04:47]} Qe5 {[%emt 0:08:52]} 19. Nge2 {[%emt 0:04:15]} Be7 {[%emt 0:01:27]} 20. Qf2 {[%emt 0:02:36]} c5 {[%emt 0:02:07]} 21. Bf4 {[%emt 0:01:54]} Qf6 {[%emt 0:00:13]} 22. Nb5 {[%emt 0:00:19]} Na6 {[%emt 0:01:41]} 23. Bxd6 {[%emt 0:00:29]} Qxb2 {[%emt 0:12:38]} 24. Bxe7 {[%emt 0:06:14]} Kxe7 {[%emt 0:00:15]} 25. Nec3 {[%emt 0:00:42]} Nb4 {[%emt 0:08:58]} 26. Rab1 {[%emt 0:00:28]} Qxc2 {[%emt 0:01:34]} 27. Rd2 {[%emt 0:00:07]} Nd3 {[%emt 0:00:52]} 28. Qe3 {[%emt 0:00:32]} Qxb1+ {[%emt 0:01:04]} 29. Nxb1 {[%emt 0:00:04]} N3e5 {[%emt 0:00:10]} 30. Rf2 {[%emt 0:01:24]} Rh5 {[%emt 0:00:43]} 31. Nd2 {[%emt 0:00:48]} Rah8 {[%emt 0:00:29]} 32. Nf3 {[%emt 0:00:25]} Bc8 {[%emt 0:01:44]} 33. Nxe5 {[%emt 0:00:29]} Nxe5 {[%emt 0:00:14]} 34. Qf4 {[%emt 0:00:06]} *

[Event "FIDE WYCC Girls U14 2023"]
[Site "Montesilvano"]
[Date "2023.11.18"]
[Round "6.4"]
[White "Goriachkina, Oksana"]
[Black "Maral Altankhuyag"]
[Result "*"]
[WhiteElo "1915"]
[BlackElo "1398"]
[Annotator "NA"]
[PlyCount "53"]
[EventDate "2023.11.13"]
[EventType "swiss"]
[EventCountry "ITA"]
[SourceTitle "playchess.com"]
[Source "ChessBase"]
[SourceQuality "1"]
[TimeControl "40/5400+30:1800+30"]

1. Nf3 {[%emt 0:00:01]} c5 {[%emt 0:00:57]} 2. c4 {[%emt 0:00:46]} g6 {[%emt 0:00:44]} 3. g3 {[%emt 0:00:34]} Bg7 {[%emt 0:00:37]} 4. Bg2 {[%emt 0:00:26]} Nf6 {[%emt 0:00:07]} 5. d4 {[%emt 0:00:04]} cxd4 {[%emt 0:02:23]} 6. Nxd4 {[%emt 0:00:05]} O-O {[%emt 0:00:10]} 7. Nc3 {[%emt 0:00:13]} Nc6 {[%emt 0:00:24]} 8. Nc2 {[%emt 0:00:15]} d6 {[%emt 0:00:51]} 9. O-O {[%emt 0:00:07]} Bf5 {[%emt 0:03:43]} 10. e4 {[%emt 0:01:52]} Bd7 {[%emt 0:01:32]} 11. b3 {[%emt 0:03:04]} Ng4 {[%emt 0:06:23]} 12. Bb2 {[%emt 0:01:02]} Qa5 {[%emt 0:11:36]} 13. Qe1 {[%emt 0:04:51]} Qh5 {[%emt 0:09:40]} 14. h3 {[%emt 0:05:27]} Nge5 {[%emt 0:06:28]} 15. Qd1 {[%emt 0:10:32]} Bg4 {[%emt 0:06:03]} 16. hxg4 {[%emt 0:25:01]} Nxg4 {[%emt 0:00:08]} 17. Re1 {[%emt 0:00:02]} f5 {[%emt 0:06:20]} 18. Ne3 {[%emt 0:14:51]} Qh2+ {[%emt 0:01:32]} 19. Kf1 {[%emt 0:00:00]} Nxe3+ {[%emt 0:14:51]} 20. Rxe3 {[%emt 0:01:11]} Bd4 {[%emt 0:00:20]} 21. Qd2 {[%emt 0:10:18]} e5 {[%emt 0:08:33]} 22. Rf3 {[%emt 0:02:08]} Rae8 {[%emt 0:03:42]} 23. Rb1 {[%emt 0:06:57]} Ne7 {[%emt 0:03:12]} 24. Qg5 {[%emt 0:02:16]} fxe4 {[%emt 0:02:13]} 25. Nxe4 {[%emt 0:01:03]} Rxf3 {[%emt 0:04:59]} 26. Bxf3 {[%emt 0:00:51]} Rf8 {[%emt 0:00:19]} 27. Bg2 {[%emt 0:00:40]} *

[Event "FIDE WYCC Girls U14 2023"]
[Site "Montesilvano"]
[Date "2023.11.18"]
[Round "6.5"]
[White "Natoli, Alessia"]
[Black "Tsetskhladze, Mariam"]
[Result "*"]
[WhiteElo "1756"]
[BlackElo "1911"]
[Annotator "NA"]
[PlyCount "69"]
[EventDate "2023.11.13"]
[EventType "swiss"]
[EventCountry "ITA"]
[SourceTitle "playchess.com"]
[Source "ChessBase"]
[SourceQuality "1"]
[TimeControl "40/5400+30:1800+30"]

1. e4 {[%emt 0:00:02]} c5 {[%emt 0:00:38]} 2. Nf3 {[%emt 0:00:12]} Nc6 {[%emt 0:00:09]} 3. Bb5 {[%emt 0:00:18]} g6 {[%emt 0:00:29]} 4. O-O {[%emt 0:00:43]} Bg7 {[%emt 0:00:06]} 5. c3 {[%emt 0:00:54]} e5 {[%emt 0:00:37]} 6. d4 {[%emt 0:02:08]} cxd4 {[%emt 0:01:26]} 7. cxd4 {[%emt 0:00:30]} exd4 {[%emt 0:00:11]} 8. Bf4 {[%emt 0:01:38]} a6 {[%emt 0:04:10]} 9. Ba4 {[%emt 0:02:17]} Nge7 {[%emt 0:01:07]} 10. Bd6 {[%emt 0:03:27]} b5 {[%emt 0:00:38]} 11. Bb3 {[%emt 0:00:35]} Bb7 {[%emt 0:00:40]} 12. Na3 {[%emt 0:15:47]} Nc8 {[%emt 0:04:50]} 13. Bc5 {[%emt 0:06:53]} d6 {[%emt 0:03:28]} 14. Bxd4 {[%emt 0:03:40]} Nxd4 {[%emt 0:00:14]} 15. Nxd4 {[%emt 0:00:09]} Nb6 {[%emt 0:10:19]} 16. Qd3 {[%emt 0:14:36]} O-O {[%emt 0:04:19]} 17. Rad1 {[%emt 0:02:29]} Qh4 {[%emt 0:10:09]} 18. Rfe1 {[%emt 0:04:54]} Rad8 {[%emt 0:15:38]} 19. Bc2 {[%emt 0:07:11]} d5 {[%emt 0:10:26]} 20. e5 {[%emt 0:03:26]} Nc4 {[%emt 0:01:01]} 21. Qc3 {[%emt 0:06:29]} Nxe5 {[%emt 0:02:27]} 22. Qg3 {[%emt 0:07:54]} Qxg3 {[%emt 0:00:51]} 23. hxg3 {[%emt 0:00:14]} Nc4 {[%emt 0:04:41]} 24. Nxc4 {[%emt 0:04:07]} dxc4 {[%emt 0:00:18]} 25. Re7 {[%emt 0:00:36]} Bxd4 {[%emt 0:02:19]} 26. Rxb7 {[%emt 0:00:38]} Bxb2 {[%emt 0:01:15]} 27. Kf1 {[%emt 0:01:15]} Rxd1+ {[%emt 0:00:47]} 28. Bxd1 {[%emt 0:00:03]} Rd8 {[%emt 0:00:30]} 29. Bf3 {[%emt 0:01:16]} Rd2 {[%emt 0:02:08]} 30. Ra7 {[%emt 0:02:07]} Bd4 {[%emt 0:01:46]} 31. Rxa6 {[%emt 0:00:11]} Rxf2+ {[%emt 0:00:10]} 32. Ke1 {[%emt 0:00:35]} c3 {[%emt 0:01:15]} 33. Be4 {[%emt 0:01:54]} b4 {[%emt 0:02:32]} 34. Kd1 {[%emt 0:01:21]} Rd2+ {[%emt 0:00:12]} 35. Kc1 {[%emt 0:00:34]} *

[Event "FIDE WYCC Girls U14 2023"]
[Site "Montesilvano"]
[Date "2023.11.18"]
[Round "6.6"]
[White "Avetisyan, Ani"]
[Black "Ciarletta, Iris"]
[Result "0-1"]
[ECO "A59"]
[WhiteElo "1770"]
[BlackElo "1882"]
[Annotator "NA"]
[PlyCount "112"]
[EventDate "2023.11.13"]
[EventType "swiss"]
[EventCountry "ITA"]
[SourceTitle "playchess.com"]
[Source "ChessBase"]
[SourceQuality "1"]
[TimeControl "40/5400+30:1800+30"]

1. d4 {[%emt 0:00:03]} Nf6 {[%emt 0:00:24]} 2. c4 {[%emt 0:00:09]} c5 {[%emt 0:00:33]} 3. d5 {[%emt 0:00:08]} b5 {[%emt 0:01:00]} 4. cxb5 {[%emt 0:00:09]} a6 {[%emt 0:00:10]} 5. bxa6 {[%emt 0:00:08]} Bxa6 {[%emt 0:00:11]} 6. Nc3 {[%emt 0:00:30]} d6 {[%emt 0:00:36]} 7. e4 {[%emt 0:01:09]} Bxf1 {[%emt 0:00:22]} 8. Kxf1 {[%emt 0:00:06]} g6 {[%emt 0:00:53]} 9. g3 {[%emt 0:00:24]} Bg7 {[%emt 0:00:36]} 10. Kg2 {[%emt 0:00:40]} O-O {[%emt 0:01:18]} 11. Nf3 {[%emt 0:01:06]} Nbd7 {[%emt 0:01:31]} 12. h3 {[%emt 0:00:36]} Ra6 {[%emt 0:02:46]} 13. Re1 {[%emt 0:04:02]} Qa8 {[%emt 0:03:03]} 14. Qe2 {[%emt 0:09:01]} Rb6 {[%emt 0:06:58]} 15. a4 {[%emt 0:06:01]} Rfb8 {[%emt 0:03:19]} 16. Ra3 {[%emt 0:02:16]} Rb4 {[%emt 0:07:21]} 17. Qc2 {[%emt 0:07:59]} Nb6 {[%emt 0:04:43]} 18. b3 {[%emt 0:06:59]} c4 {[%emt 0:04:12]} 19. bxc4 {[%emt 0:02:44]} Rxc4 {[%emt 0:02:23]} 20. Qd3 {[%emt 0:08:45]} Rbc8 {[%emt 0:03:42]} 21. a5 {[%emt 0:04:50]} Nbd7 {[%emt 0:04:21]} 22. Bd2 {[%emt 0:01:44]} Ne8 {[%emt 0:08:25]} 23. Rb1 {[%emt 0:03:47]} R4c7 {[%emt 0:09:55]} 24. Nb5 {[%emt 0:10:05]} Rb7 {[%emt 0:01:33]} 25. Nfd4 {[%emt 0:04:23]} Nc5 {[%emt 0:02:40]} 26. Qe3 {[%emt 0:01:48]} Bxd4 {[%emt 0:01:36]} 27. Qxd4 {[%emt 0:00:24]} Rcb8 {[%emt 0:00:51]} 28. Bc3 {[%emt 0:09:03]} f6 {[%emt 0:00:45]} 29. Nxd6 {[%emt 0:06:17]} exd6 {[%emt 0:04:06]} 30. Re1 {[%emt 0:01:38]} Nd7 {[%emt 0:01:50]} 31. a6 {[%emt 0:01:13]} Ra7 {[%emt 0:01:15]} 32. Rea1 {[%emt 0:00:56]} Rb6 {[%emt 0:01:21]} 33. Qe3 {[%emt 0:02:48]} Rbxa6 {[%emt 0:05:18]} 34. Qxa7 {[%emt 0:00:26]} Qxa7 {[%emt 0:00:08]} 35. Rxa6 {[%emt 0:00:04]} Qc5 {[%emt 0:00:23]} 36. Rc6 {[%emt 0:01:44]} Qb5 {[%emt 0:01:13]} 37. Ra8 {[%emt 0:00:30]} Kf7 {[%emt 0:00:43]} 38. Ra7 {[%emt 0:01:12]} Ke7 {[%emt 0:00:52]} 39. Rc8 {[%emt 0:02:51]} f5 {[%emt 0:06:24]} 40. Ra5 {[%emt 0:00:00]} Qd3 {[%emt 0:00:00]} 41. exf5 {[%emt 0:03:49]} Qxf5 {[%emt 0:02:22]} 42. Bd2 {[%emt 0:06:03]} Nef6 {[%emt 0:01:51]} 43. Rc1 {[%emt 0:08:17]} Nxd5 {[%emt 0:02:15]} 44. Ra7 {[%emt 0:02:46]} N5f6 {[%emt 0:01:46]} 45. Be3 {[%emt 0:02:11]} h5 {[%emt 0:03:17]} 46. Re1 {[%emt 0:01:05]} Kf7 {[%emt 0:01:04]} 47. Rd1 {[%emt 0:02:20]} d5 {[%emt 0:01:04]} 48. Rd4 {[%emt 0:00:20]} g5 {[%emt 0:00:48]} 49. Rb7 {[%emt 0:01:31]} Kg6 {[%emt 0:01:52]} 50. Ra4 {[%emt 0:01:37]} Ne5 {[%emt 0:02:11]} 51. Raa7 {[%emt 0:00:59]} Qe4+ {[%emt 0:02:47]} 52. Kf1 {[%emt 0:00:51]} Nf3 {[%emt 0:00:45]} 53. Rg7+ {[%emt 0:01:48]} Kf5 {[%emt 0:00:33]} 54. Rab7 {[%emt 0:02:12]} g4 {[%emt 0:01:28]} 55. hxg4+ {[%emt 0:01:30]} hxg4 {[%emt 0:00:18]} 56. Ke2 {[%emt 0:01:06]} Qc2+ {[%emt 0:00:44]} 0-1

[Event "FIDE WYCC Girls U14 2023"]
[Site "Montesilvano"]
[Date "2023.11.18"]
[Round "6.7"]
[White "Arzur, Maia"]
[Black "Gaszka, Zuzanna"]
[Result "*"]
[WhiteElo "1997"]
[BlackElo "1758"]
[Annotator "NA"]
[PlyCount "58"]
[EventDate "2023.11.13"]
[EventType "swiss"]
[EventCountry "ITA"]
[SourceTitle "playchess.com"]
[Source "ChessBase"]
[SourceQuality "1"]
[TimeControl "40/5400+30:1800+30"]

1. e4 {[%emt 0:00:08]} c6 {[%emt 0:00:06]} 2. d4 {[%emt 0:00:18]} d5 {[%emt 0:00:05]} 3. Nc3 {[%emt 0:00:17]} dxe4 {[%emt 0:00:05]} 4. Nxe4 {[%emt 0:00:11]} Nf6 {[%emt 0:00:06]} 5. Nxf6+ {[%emt 0:00:26]} exf6 {[%emt 0:00:06]} 6. c3 {[%emt 0:00:41]} Bd6 {[%emt 0:00:09]} 7. Bd3 {[%emt 0:00:42]} O-O {[%emt 0:00:14]} 8. Qc2 {[%emt 0:00:32]} Re8+ {[%emt 0:00:09]} 9. Ne2 {[%emt 0:00:27]} h5 {[%emt 0:00:19]} 10. Be3 {[%emt 0:00:42]} Nd7 {[%emt 0:00:32]} 11. O-O-O {[%emt 0:01:23]} Nf8 {[%emt 0:00:37]} 12. c4 {[%emt 0:01:32]} Be6 {[%emt 0:04:22]} 13. a3 {[%emt 0:02:53]} Rc8 {[%emt 0:04:24]} 14. Nc3 {[%emt 0:02:53]} a6 {[%emt 0:08:50]} 15. c5 {[%emt 0:05:44]} Be7 {[%emt 0:16:23]} 16. Be4 {[%emt 0:08:06]} g6 {[%emt 0:10:54]} 17. h3 {[%emt 0:09:01]} f5 {[%emt 0:11:10]} 18. Bf3 {[%emt 0:03:39]} Nd7 {[%emt 0:03:03]} 19. Rhg1 {[%emt 0:10:24]} Nf6 {[%emt 0:05:07]} 20. Ne2 {[%emt 0:09:03]} Bd5 {[%emt 0:09:01]} 21. Nf4 {[%emt 0:06:06]} Bf8 {[%emt 0:05:38]} 22. Be2 {[%emt 0:04:21]} Be4 {[%emt 0:01:11]} 23. Qb3 {[%emt 0:02:11]} Bd5 {[%emt 0:05:55]} 24. Nxd5 {[%emt 0:03:20]} cxd5 {[%emt 0:01:05]} 25. Bd3 {[%emt 0:02:11]} Ne4 {[%emt 0:05:58]} 26. Kb1 {[%emt 0:02:12]} Qd7 {[%emt 0:01:41]} 27. Rde1 {[%emt 0:03:56]} Bg7 {[%emt 0:01:22]} 28. Qd1 {[%emt 0:03:41]} f4 {[%emt 0:01:15]} 29. Bxf4 {[%emt 0:03:50]} Nxf2 {[%emt 0:00:33]} *

[Event "FIDE WYCC Girls U14 2023"]
[Site "Montesilvano"]
[Date "2023.11.18"]
[Round "6.8"]
[White "Dicen, Elis Denele"]
[Black "Romany, Joy"]
[Result "*"]
[WhiteElo "1976"]
[BlackElo "1764"]
[Annotator "NA"]
[PlyCount "60"]
[EventDate "2023.11.13"]
[EventType "swiss"]
[EventCountry "ITA"]
[SourceTitle "playchess.com"]
[Source "ChessBase"]
[SourceQuality "1"]
[TimeControl "40/5400+30:1800+30"]

1. d4 {[%emt 0:00:03]} d5 {[%emt 0:00:13]} 2. c4 {[%emt 0:00:07]} c6 {[%emt 0:00:05]} 3. Nf3 {[%emt 0:00:07]} Nf6 {[%emt 0:00:05]} 4. Nc3 {[%emt 0:00:08]} dxc4 {[%emt 0:00:04]} 5. a4 {[%emt 0:00:20]} Bf5 {[%emt 0:00:09]} 6. Ne5 {[%emt 0:00:33]} Nbd7 {[%emt 0:00:35]} 7. Nxc4 {[%emt 0:00:36]} Qc7 {[%emt 0:00:12]} 8. g3 {[%emt 0:00:40]} e5 {[%emt 0:00:13]} 9. dxe5 {[%emt 0:00:38]} Nxe5 {[%emt 0:00:07]} 10. Bf4 {[%emt 0:00:43]} Nfd7 {[%emt 0:00:35]} 11. Bg2 {[%emt 0:02:10]} g5 {[%emt 0:00:31]} 12. Ne3 {[%emt 0:00:52]} gxf4 {[%emt 0:02:46]} 13. Nxf5 {[%emt 0:00:29]} fxg3 {[%emt 0:01:08]} 14. hxg3 {[%emt 0:00:31]} O-O-O {[%emt 0:01:33]} 15. Qc2 {[%emt 0:01:27]} Nf6 {[%emt 0:04:34]} 16. O-O {[%emt 0:04:05]} h5 {[%emt 0:06:56]} 17. Rfc1 {[%emt 0:05:06]} Kb8 {[%emt 0:06:44]} 18. Nb5 {[%emt 0:10:43]} Qb6 {[%emt 0:02:48]} 19. Qc3 {[%emt 0:15:19]} Nfg4 {[%emt 0:04:32]} 20. e3 {[%emt 0:12:21]} Rd3 {[%emt 0:17:34]} 21. Qc2 {[%emt 0:05:26]} Bb4 {[%emt 0:02:07]} 22. Nc3 {[%emt 0:02:49]} Rhd8 {[%emt 0:23:13]} 23. Rd1 {[%emt 0:08:51]} Nf6 {[%emt 0:05:24]} 24. Nd4 {[%emt 0:05:08]} Rxd1+ {[%emt 0:01:19]} 25. Rxd1 {[%emt 0:00:12]} Bc5 {[%emt 0:03:01]} 26. a5 {[%emt 0:04:20]} Qc7 {[%emt 0:01:33]} 27. Ne4 {[%emt 0:07:13]} Nxe4 {[%emt 0:02:19]} 28. Qxe4 {[%emt 0:00:31]} a6 {[%emt 0:04:18]} 29. Rc1 {[%emt 0:02:37]} Bxd4 {[%emt 0:01:23]} 30. exd4 {[%emt 0:00:10]} Ng6 {[%emt 0:00:28]} *